[Event "Live Chess"]
[Site "Chess.com"]
[Date "2023.05.20"]
[Round "-"]
[White "minenko-1958"]
[Black "BostonStrangler"]
[Result "0-1"]
[WhiteElo "1401"]
[BlackElo "2062"]
[TimeControl "300"]
[EndTime "11:25:09 PDT"]
[Termination "BostonStrangler won by resignation"]

1. e4 {[%clk 0:04:57.8]} 1... c5 {[%clk 0:04:58.3]} 2. Nf3 {[%clk 0:04:54.9]}
2... g6 {[%clk 0:04:57.8]} 3. h3 {[%clk 0:04:53.3]} 3... Nc6 {[%clk 0:04:54.2]}
4. c3 {[%clk 0:04:51.5]} 4... Bg7 {[%clk 0:04:52.4]} 5. Bc4 {[%clk 0:04:49.4]}
5... e6 {[%clk 0:04:51.2]} 6. d3 {[%clk 0:04:47.3]} 6... Nge7 {[%clk 0:04:49.4]}
7. O-O {[%clk 0:04:45.8]} 7... d5 {[%clk 0:04:48.5]} 8. exd5 {[%clk 0:04:44.3]}
8... exd5 {[%clk 0:04:47.8]} 9. Bb3 {[%clk 0:04:42.3]} 9... O-O {[%clk
0:04:47.5]} 10. Bc2 {[%clk 0:04:35.2]} 10... f6 {[%clk 0:04:43]} 11. Bf4 {[%clk
0:04:28.1]} 11... Be6 {[%clk 0:04:35.2]} 12. d4 {[%clk 0:04:24.1]} 12... c4
{[%clk 0:04:33.9]} 13. Nbd2 {[%clk 0:04:15.5]} 13... Qd7 {[%clk 0:04:31.1]} 14.
Bh2 {[%clk 0:04:12.3]} 14... b5 {[%clk 0:04:26.8]} 15. a3 {[%clk 0:04:10.1]}
15... a5 {[%clk 0:04:25.2]} 16. b3 {[%clk 0:04:03.8]} 16... Bf5 {[%clk 0:04:11]}
17. bxc4 {[%clk 0:03:48.5]} 17... Bxc2 {[%clk 0:04:08.4]} 18. Qxc2 {[%clk
0:03:46]} 18... bxc4 {[%clk 0:04:08]} 19. a4 {[%clk 0:03:37]} 19... Nf5 {[%clk
0:03:59.7]} 20. Rfe1 {[%clk 0:03:34.7]} 20... Nd6 {[%clk 0:03:58]} 21. Rab1
{[%clk 0:03:28.1]} 21... Rfe8 {[%clk 0:03:55.7]} 22. Nf1 {[%clk 0:03:09.5]}
22... f5 {[%clk 0:03:52.1]} 23. Rb6 {[%clk 0:02:58]} 23... Rxe1 {[%clk
0:03:41.6]} 24. Nxe1 {[%clk 0:02:55.9]} 24... Ne4 {[%clk 0:03:41.1]} 25. Nf3
{[%clk 0:02:44.5]} 25... h6 {[%clk 0:03:26.1]} 26. N1d2 {[%clk 0:02:37.8]} 26...
g5 {[%clk 0:03:04.8]} 27. Nxe4 {[%clk 0:02:21.5]} 27... fxe4 {[%clk 0:03:03.5]}
28. Ne5 {[%clk 0:02:19.6]} 28... Nxe5 {[%clk 0:03:01.8]} 29. dxe5 {[%clk
0:02:16.4]} 29... Qf5 {[%clk 0:02:53]} 30. e6 {[%clk 0:02:04.8]} 30... Re8
{[%clk 0:02:46.7]} 31. Rb5 {[%clk 0:01:47]} 31... Rxe6 {[%clk 0:02:34.4]} 32.
Rxa5 {[%clk 0:01:44.6]} 32... Rb6 {[%clk 0:02:17.4]} 33. Rb5 {[%clk 0:01:37.8]}
33... Rxb5 {[%clk 0:02:04.2]} 34. axb5 {[%clk 0:01:36.5]} 34... d4 {[%clk
0:02:03.7]} 35. cxd4 {[%clk 0:01:27.2]} 35... Qxb5 {[%clk 0:01:56.5]} 36. Qxe4
{[%clk 0:01:24.6]} 36... c3 {[%clk 0:01:51.9]} 37. Qc2 {[%clk 0:01:12.5]} 37...
Bxd4 {[%clk 0:01:42.1]} 38. g4 {[%clk 0:01:06.5]} 38... Bg7 {[%clk 0:01:21.9]}
39. Qg6 {[%clk 0:00:56.1]} 39... Qc5 {[%clk 0:00:51.6]} 40. Qe8+ {[%clk
0:00:50.7]} 40... Qf8 {[%clk 0:00:46.1]} 41. Qe6+ {[%clk 0:00:46.5]} 41... Qf7
{[%clk 0:00:45.1]} 42. Qc8+ {[%clk 0:00:43.5]} 42... Kh7 {[%clk 0:00:43.6]} 43.
Qc4 {[%clk 0:00:28.6]} 43... Qxc4 {[%clk 0:00:39.4]} 0-1

[Event "Live Chess"]
[Site "Chess.com"]
[Date "2023.05.20"]
[Round "-"]
[White "TheSmoulderingMaster"]
[Black "PiotrD11"]
[Result "0-1"]
[WhiteElo "1769"]
[BlackElo "1352"]
[TimeControl "300"]
[EndTime "11:25:15 PDT"]
[Termination "PiotrD11 won by resignation"]

1. e4 {[%clk 0:04:58.6]} 1... d5 {[%clk 0:04:59.9]} 2. exd5 {[%clk 0:04:57.3]}
2... Nf6 {[%clk 0:04:59]} 3. Bb5+ {[%clk 0:04:53.7]} 3... Bd7 {[%clk 0:04:56.2]}
4. Bc4 {[%clk 0:04:52.8]} 4... c6 {[%clk 0:04:52.7]} 5. dxc6 {[%clk 0:04:50.2]}
5... Nxc6 {[%clk 0:04:52.3]} 6. Nf3 {[%clk 0:04:47.4]} 6... e6 {[%clk
0:04:51.8]} 7. O-O {[%clk 0:04:46.2]} 7... Bd6 {[%clk 0:04:50.2]} 8. d4 {[%clk
0:04:44.8]} 8... O-O {[%clk 0:04:49.5]} 9. Nc3 {[%clk 0:04:43.4]} 9... a6 {[%clk
0:04:45.2]} 10. Bg5 {[%clk 0:04:42.1]} 10... Be7 {[%clk 0:04:40.1]} 11. Re1
{[%clk 0:04:39.9]} 11... h6 {[%clk 0:04:38.6]} 12. Bh4 {[%clk 0:04:28.9]} 12...
b5 {[%clk 0:04:34.4]} 13. Bd3 {[%clk 0:04:27.1]} 13... Qc7 {[%clk 0:04:20.7]}
14. Bg3 {[%clk 0:04:24.5]} 14... Bd6 {[%clk 0:04:18.2]} 15. Ne5 {[%clk
0:04:22.1]} 15... Nd5 {[%clk 0:04:06.8]} 16. Ne4 {[%clk 0:04:20.1]} 16... Nxe5
{[%clk 0:04:00.7]} 17. dxe5 {[%clk 0:04:19.4]} 17... Bxe5 {[%clk 0:03:56.2]} 18.
Bxe5 {[%clk 0:04:16.3]} 18... Qxe5 {[%clk 0:03:55.7]} 19. Nc5 {[%clk 0:04:16.2]}
19... Qc7 {[%clk 0:03:51.3]} 20. Ne4 {[%clk 0:04:11]} 20... Rad8 {[%clk
0:03:36.3]} 21. b3 {[%clk 0:04:09.6]} 21... Bc8 {[%clk 0:03:16]} 22. c4 {[%clk
0:04:08.2]} 22... Nb4 {[%clk 0:03:08.4]} 23. Re3 {[%clk 0:03:58.8]} 23... Bb7
{[%clk 0:02:59.2]} 24. Qf3 {[%clk 0:03:44.5]} 24... Nxd3 {[%clk 0:02:43.4]} 25.
Rxd3 {[%clk 0:03:43.4]} 25... bxc4 {[%clk 0:02:25.7]} 26. bxc4 {[%clk
0:03:41.3]} 26... Qxc4 {[%clk 0:02:24.5]} 27. Re3 {[%clk 0:03:38.1]} 27... f5
{[%clk 0:02:17.7]} 28. Nc3 {[%clk 0:03:18.8]} 28... Bxf3 {[%clk 0:02:15.9]} 0-1

[Event "Live Chess"]
[Site "Chess.com"]
[Date "2023.05.20"]
[Round "-"]
[White "MaximKris"]
[Black "Davidagye"]
[Result "1-0"]
[WhiteElo "1874"]
[BlackElo "1674"]
[TimeControl "300"]
[EndTime "11:25:16 PDT"]
[Termination "MaximKris won by checkmate"]

1. e4 {[%clk 0:04:58.6]} 1... Nf6 {[%clk 0:04:58.6]} 2. Nc3 {[%clk 0:04:56.9]}
2... d6 {[%clk 0:04:56.7]} 3. Nf3 {[%clk 0:04:55.7]} 3... Nbd7 {[%clk
0:04:54.9]} 4. d4 {[%clk 0:04:55.3]} 4... e5 {[%clk 0:04:52.9]} 5. dxe5 {[%clk
0:04:53]} 5... dxe5 {[%clk 0:04:51.9]} 6. Bg5 {[%clk 0:04:52]} 6... c6 {[%clk
0:04:49.8]} 7. Bc4 {[%clk 0:04:51.3]} 7... h6 {[%clk 0:04:48.2]} 8. Bxf7+ {[%clk
0:04:46.9]} 8... Kxf7 {[%clk 0:04:43.8]} 9. Nxe5+ {[%clk 0:04:46.4]} 9... Ke8
{[%clk 0:04:39.7]} 10. Bxf6 {[%clk 0:04:44.9]} 10... Qxf6 {[%clk 0:04:37.5]} 11.
Qh5+ {[%clk 0:04:42.7]} 11... g6 {[%clk 0:04:32.5]} 12. Nxg6 {[%clk 0:04:40.9]}
12... Qf7 {[%clk 0:04:31.8]} 13. O-O-O {[%clk 0:04:36.6]} 13... Rg8 {[%clk
0:04:28.2]} 14. Qh3 {[%clk 0:03:59]} 14... Rxg6 {[%clk 0:04:23.3]} 15. e5 {[%clk
0:03:53]} 15... Nxe5 {[%clk 0:04:16.8]} 16. Qh4 {[%clk 0:03:40]} 16... Be7
{[%clk 0:04:11.5]} 17. Qd4 {[%clk 0:03:36.2]} 17... Bf6 {[%clk 0:04:05.1]} 18.
Rhe1 {[%clk 0:03:32.7]} 18... Qe7 {[%clk 0:04:00.6]} 19. f4 {[%clk 0:03:30.1]}
19... Rg4 {[%clk 0:03:58]} 20. h3 {[%clk 0:03:21.7]} 20... Rxg2 {[%clk
0:03:46.9]} 21. fxe5 {[%clk 0:03:16.9]} 21... Bg7 {[%clk 0:03:38.7]} 22. Ne4
{[%clk 0:03:07.5]} 22... Bf5 {[%clk 0:03:34.1]} 23. Nd6+ {[%clk 0:03:05.1]}
23... Qxd6 {[%clk 0:03:18.6]} 24. exd6+ {[%clk 0:03:03]} 24... Kd8 {[%clk
0:03:11]} 25. Qh4+ {[%clk 0:02:59.8]} 25... Kc8 {[%clk 0:03:01.2]} 26. Re8+
{[%clk 0:02:57]} 26... Kd7 {[%clk 0:02:57.2]} 27. Qe7# {[%clk 0:02:56.5]} 1-0

[Event "Live Chess"]
[Site "Chess.com"]
[Date "2023.05.20"]
[Round "-"]
[White "BillythekidFellowes"]
[Black "Yehor20132013"]
[Result "1-0"]
[WhiteElo "2019"]
[BlackElo "560"]
[TimeControl "300"]
[EndTime "11:25:22 PDT"]
[Termination "BillythekidFellowes won by checkmate"]

1. e4 {[%clk 0:04:54.5]} 1... e5 {[%clk 0:04:57.1]} 2. Nf3 {[%clk 0:04:45.8]}
2... Bd6 {[%clk 0:04:56.4]} 3. Bc4 {[%clk 0:04:43]} 3... Nf6 {[%clk 0:04:55.3]}
4. d4 {[%clk 0:04:42.1]} 4... c6 {[%clk 0:04:53.4]} 5. dxe5 {[%clk 0:04:41.7]}
5... Bxe5 {[%clk 0:04:51.5]} 6. Nxe5 {[%clk 0:04:41.2]} 6... d6 {[%clk
0:04:49.6]} 7. Nxf7 {[%clk 0:04:40]} 7... Qe7 {[%clk 0:04:36.6]} 8. Nxd6+ {[%clk
0:04:38.1]} 8... Qxd6 {[%clk 0:04:33.9]} 9. Qxd6 {[%clk 0:04:36.1]} 9... Nxe4
{[%clk 0:04:25.3]} 10. Qe5+ {[%clk 0:04:32.8]} 10... Kd7 {[%clk 0:03:46.6]} 11.
Be6+ {[%clk 0:04:23.7]} 11... Ke7 {[%clk 0:03:41.7]} 12. Qxe4 {[%clk 0:04:22.2]}
12... Kf6 {[%clk 0:03:39]} 13. Qf5+ {[%clk 0:04:19.9]} 13... Ke7 {[%clk
0:03:31.6]} 14. Bg5+ {[%clk 0:04:19.8]} 14... Ke8 {[%clk 0:03:24.6]} 15. Qf7#
{[%clk 0:04:17.6]} 1-0

[Event "Live Chess"]
[Site "Chess.com"]
[Date "2023.05.20"]
[Round "-"]
[White "raminguy"]
[Black "lightningorderyt"]
[Result "1-0"]
[WhiteElo "1979"]
[BlackElo "558"]
[TimeControl "300"]
[EndTime "11:25:37 PDT"]
[Termination "raminguy won by checkmate"]

1. d4 {[%clk 0:04:58.3]} 1... e6 {[%clk 0:04:55.4]} 2. Nc3 {[%clk 0:04:57.6]}
2... Qf6 {[%clk 0:04:48.9]} 3. Nf3 {[%clk 0:04:55.9]} 3... Nh6 {[%clk
0:04:47.1]} 4. e4 {[%clk 0:04:52.9]} 4... d5 {[%clk 0:04:42.4]} 5. e5 {[%clk
0:04:51]} 5... Qf5 {[%clk 0:04:33.6]} 6. h3 {[%clk 0:04:45.8]} 6... Bb4 {[%clk
0:04:16.3]} 7. Bd3 {[%clk 0:04:44]} 7... Qh5 {[%clk 0:04:00.9]} 8. a3 {[%clk
0:04:17.6]} 8... Bxc3+ {[%clk 0:03:54.9]} 9. bxc3 {[%clk 0:04:15.8]} 9... b6
{[%clk 0:03:49.1]} 10. Rh2 {[%clk 0:04:07]} 10... Ba6 {[%clk 0:03:42.8]} 11. g4
{[%clk 0:04:04.7]} 11... Nxg4 {[%clk 0:03:25]} 12. hxg4 {[%clk 0:04:04.6]} 12...
Qxg4 {[%clk 0:03:16.5]} 13. Rh1 {[%clk 0:03:46.9]} 13... Bxd3 {[%clk 0:03:04.5]}
14. cxd3 {[%clk 0:03:44.8]} 14... Qg2 {[%clk 0:02:54]} 15. Rg1 {[%clk
0:03:42.3]} 15... Qh3 {[%clk 0:02:39.4]} 16. Rxg7 {[%clk 0:03:38.2]} 16... Qg4
{[%clk 0:02:14.3]} 17. Rxg4 {[%clk 0:03:36.2]} 17... Nd7 {[%clk 0:02:07.5]} 18.
Qa4 {[%clk 0:03:32.3]} 18... Rc8 {[%clk 0:01:58.1]} 19. Qxa7 {[%clk 0:03:24.6]}
19... f5 {[%clk 0:01:36.1]} 20. exf6 {[%clk 0:03:16.8]} 20... Nxf6 {[%clk
0:01:24.7]} 21. Qa4+ {[%clk 0:03:16]} 21... Kf7 {[%clk 0:01:00]} 22. Ne5+ {[%clk
0:03:13]} 22... Ke7 {[%clk 0:00:56.5]} 23. Rg7+ {[%clk 0:03:11]} 23... Kf8
{[%clk 0:00:54.4]} 24. Rf7+ {[%clk 0:03:09.5]} 24... Kg8 {[%clk 0:00:50.5]} 25.
Rxf6 {[%clk 0:03:08.3]} 25... Rf8 {[%clk 0:00:39.7]} 26. Rxf8+ {[%clk 0:03:06]}
26... Kxf8 {[%clk 0:00:38.3]} 27. Bh6+ {[%clk 0:03:03.7]} 27... Kg8 {[%clk
0:00:36.3]} 28. Qe8# {[%clk 0:03:01.1]} 1-0

[Event "Live Chess"]
[Site "Chess.com"]
[Date "2023.05.20"]
[Round "-"]
[White "zdanevych"]
[Black "garyjc"]
[Result "1-0"]
[WhiteElo "1542"]
[BlackElo "1035"]
[TimeControl "300"]
[EndTime "11:25:42 PDT"]
[Termination "zdanevych won by resignation"]

1. d4 {[%clk 0:04:58.9]} 1... Nf6 {[%clk 0:04:58.2]} 2. c4 {[%clk 0:04:57.7]}
2... g6 {[%clk 0:04:57.4]} 3. Nc3 {[%clk 0:04:56.2]} 3... Bg7 {[%clk 0:04:56.5]}
4. e4 {[%clk 0:04:55.7]} 4... O-O {[%clk 0:04:55.6]} 5. e5 {[%clk 0:04:55.2]}
5... Ne8 {[%clk 0:04:50.6]} 6. Nf3 {[%clk 0:04:52.8]} 6... d6 {[%clk 0:04:49.7]}
7. Bf4 {[%clk 0:04:51.1]} 7... dxe5 {[%clk 0:04:48.3]} 8. Bxe5 {[%clk 0:04:51]}
8... Bxe5 {[%clk 0:04:46.3]} 9. Nxe5 {[%clk 0:04:50.9]} 9... Nc6 {[%clk
0:04:43.8]} 10. Nf3 {[%clk 0:04:45.6]} 10... Nf6 {[%clk 0:04:39.2]} 11. h3
{[%clk 0:04:43.5]} 11... Be6 {[%clk 0:04:29.3]} 12. d5 {[%clk 0:04:42.7]} 12...
Bxh3 {[%clk 0:04:02.3]} 13. gxh3 {[%clk 0:04:37]} 13... Nb4 {[%clk 0:04:01.3]}
14. a3 {[%clk 0:04:31.5]} 14... Na6 {[%clk 0:03:59.7]} 15. Bg2 {[%clk 0:04:23]}
15... c6 {[%clk 0:03:56.8]} 16. dxc6 {[%clk 0:04:17.8]} 16... bxc6 {[%clk
0:03:55.2]} 17. Qxd8 {[%clk 0:04:16.2]} 17... Raxd8 {[%clk 0:03:54.1]} 18. O-O
{[%clk 0:04:14.8]} 18... Nc5 {[%clk 0:03:51.5]} 19. b4 {[%clk 0:04:12.1]} 19...
Nd3 {[%clk 0:03:50.4]} 20. Rad1 {[%clk 0:04:05]} 20... Nh5 {[%clk 0:03:40.6]}
21. Ne4 {[%clk 0:03:48.7]} 21... Nhf4 {[%clk 0:03:36.9]} 22. Nc5 {[%clk
0:03:44.8]} 22... Nxg2 {[%clk 0:03:31]} 23. Nxd3 {[%clk 0:03:38]} 23... Rxd3
{[%clk 0:02:53.6]} 24. Rxd3 {[%clk 0:03:37.9]} 24... Nf4 {[%clk 0:02:52.8]} 25.
Rd7 {[%clk 0:03:31]} 25... Nxh3+ {[%clk 0:02:50.7]} 26. Kh2 {[%clk 0:03:29.5]}
26... Nf4 {[%clk 0:02:49.6]} 27. Rxe7 {[%clk 0:03:25.8]} 27... f5 {[%clk
0:02:44.6]} 28. Rxa7 {[%clk 0:03:20]} 1-0

[Event "Live Chess"]
[Site "Chess.com"]
[Date "2023.05.20"]
[Round "-"]
[White "SaraTang"]
[Black "GEMdzq"]
[Result "0-1"]
[WhiteElo "156"]
[BlackElo "2202"]
[TimeControl "300"]
[EndTime "11:25:42 PDT"]
[Termination "GEMdzq won by checkmate"]

1. e4 {[%clk 0:04:58.7]} 1... d6 {[%clk 0:04:57.7]} 2. Bc4 {[%clk 0:04:48.7]}
2... Nf6 {[%clk 0:04:56.6]} 3. Nf3 {[%clk 0:04:43.5]} 3... Nxe4 {[%clk
0:04:51.1]} 4. d3 {[%clk 0:04:39]} 4... Nf6 {[%clk 0:04:49.7]} 5. O-O {[%clk
0:04:34.6]} 5... e6 {[%clk 0:04:48.8]} 6. Re1 {[%clk 0:04:32.9]} 6... Be7 {[%clk
0:04:48.2]} 7. Nc3 {[%clk 0:04:30.4]} 7... O-O {[%clk 0:04:46.6]} 8. Qe2 {[%clk
0:04:28.4]} 8... Nc6 {[%clk 0:04:42]} 9. Be3 {[%clk 0:04:18.5]} 9... d5 {[%clk
0:04:38.3]} 10. Bb3 {[%clk 0:04:16.6]} 10... d4 {[%clk 0:04:37.5]} 11. Bxd4
{[%clk 0:04:09.7]} 11... Nxd4 {[%clk 0:04:37.4]} 12. Nxd4 {[%clk 0:04:08.5]}
12... Qxd4 {[%clk 0:04:36.1]} 13. Rad1 {[%clk 0:03:58.6]} 13... Bd7 {[%clk
0:04:28.8]} 14. Nb5 {[%clk 0:03:55.7]} 14... Bxb5 {[%clk 0:04:27.4]} 15. c3
{[%clk 0:03:54.5]} 15... Qg4 {[%clk 0:04:21.6]} 16. Qxg4 {[%clk 0:03:52.5]}
16... Nxg4 {[%clk 0:04:21.3]} 17. f3 {[%clk 0:03:49]} 17... Nf6 {[%clk
0:04:19.1]} 18. c4 {[%clk 0:03:46.9]} 18... Bc6 {[%clk 0:04:17.3]} 19. a4 {[%clk
0:03:38.5]} 19... Rfd8 {[%clk 0:04:14.2]} 20. Ra1 {[%clk 0:03:25.7]} 20... Rxd3
{[%clk 0:04:10.5]} 21. Ra3 {[%clk 0:03:21.8]} 21... Bc5+ {[%clk 0:04:07.2]} 22.
Kf1 {[%clk 0:03:14.5]} 22... Bxa3 {[%clk 0:04:02.9]} 23. bxa3 {[%clk 0:03:13.7]}
23... Rxb3 {[%clk 0:04:02.6]} 24. Ra1 {[%clk 0:03:11.3]} 24... Rd8 {[%clk
0:04:00.6]} 25. Kg1 {[%clk 0:03:06.6]} 25... Rd2 {[%clk 0:03:59.3]} 26. f4
{[%clk 0:03:03.2]} 26... Rxg2+ {[%clk 0:03:57.5]} 27. Kf1 {[%clk 0:03:00.3]}
27... Rxh2 {[%clk 0:03:54.5]} 28. Kg1 {[%clk 0:02:58.7]} 28... Rg2+ {[%clk
0:03:52.8]} 29. Kh1 {[%clk 0:02:57.1]} 29... Rh3# {[%clk 0:03:52.4]} 0-1

[Event "Live Chess"]
[Site "Chess.com"]
[Date "2023.05.20"]
[Round "-"]
[White "Pandreq"]
[Black "domrobson"]
[Result "0-1"]
[WhiteElo "1267"]
[BlackElo "1757"]
[TimeControl "300"]
[EndTime "11:25:47 PDT"]
[Termination "domrobson won by resignation"]

1. d4 {[%clk 0:04:57.3]} 1... Nf6 {[%clk 0:04:58.7]} 2. c4 {[%clk 0:04:56.2]}
2... e6 {[%clk 0:04:57.9]} 3. Nc3 {[%clk 0:04:55.4]} 3... d5 {[%clk 0:04:57.5]}
4. cxd5 {[%clk 0:04:54.3]} 4... exd5 {[%clk 0:04:56.2]} 5. Nf3 {[%clk
0:04:52.4]} 5... c6 {[%clk 0:04:55.7]} 6. Bg5 {[%clk 0:04:50.5]} 6... Bg4 {[%clk
0:04:55.1]} 7. e3 {[%clk 0:04:49.3]} 7... Nbd7 {[%clk 0:04:54.1]} 8. Be2 {[%clk
0:04:47.4]} 8... Bb4 {[%clk 0:04:53.3]} 9. a3 {[%clk 0:04:45.9]} 9... Bxc3+
{[%clk 0:04:51.2]} 10. bxc3 {[%clk 0:04:45.4]} 10... h6 {[%clk 0:04:50]} 11. Bh4
{[%clk 0:04:43.8]} 11... Qa5 {[%clk 0:04:49.1]} 12. Qc1 {[%clk 0:04:35.8]} 12...
Ne4 {[%clk 0:04:46]} 13. Nd2 {[%clk 0:04:17.2]} 13... Bxe2 {[%clk 0:04:34.8]}
14. Nxe4 {[%clk 0:04:09.2]} 14... Bc4 {[%clk 0:04:28.4]} 15. Nd6+ {[%clk
0:03:56.5]} 15... Kf8 {[%clk 0:04:27.3]} 16. Nxc4 {[%clk 0:03:51.4]} 16... dxc4
{[%clk 0:04:27.2]} 17. O-O {[%clk 0:03:48.7]} 17... g5 {[%clk 0:04:24.8]} 18.
Bg3 {[%clk 0:03:47.3]} 18... Nf6 {[%clk 0:04:23.9]} 19. Be5 {[%clk 0:03:45.1]}
19... Kg7 {[%clk 0:04:21.5]} 20. Re1 {[%clk 0:03:30]} 20... Rhe8 {[%clk
0:04:19.2]} 21. Qd2 {[%clk 0:03:25.5]} 21... Re6 {[%clk 0:04:17.8]} 22. Ra2
{[%clk 0:03:19.5]} 22... Kg8 {[%clk 0:04:15.9]} 23. Bxf6 {[%clk 0:03:13.7]}
23... Rxf6 {[%clk 0:04:14.6]} 24. Rc1 {[%clk 0:03:11.5]} 24... Re8 {[%clk
0:04:12.7]} 25. Qe2 {[%clk 0:03:04.2]} 25... b5 {[%clk 0:04:11]} 26. e4 {[%clk
0:02:57]} 26... Rfe6 {[%clk 0:04:07.2]} 27. e5 {[%clk 0:02:55.9]} 27... f6
{[%clk 0:04:05.9]} 28. f4 {[%clk 0:02:50.4]} 28... gxf4 {[%clk 0:04:03.3]} 29.
Qg4+ {[%clk 0:02:47.8]} 29... Kf7 {[%clk 0:03:59.4]} 30. Qxf4 {[%clk 0:02:41.3]}
30... Qb6 {[%clk 0:03:53.5]} 31. Qxh6 {[%clk 0:02:31.5]} 31... Rxe5 {[%clk
0:03:52]} 32. Rf1 {[%clk 0:02:20.4]} 32... R5e6 {[%clk 0:03:40.3]} 33. Raf2
{[%clk 0:02:14.7]} 33... Ke7 {[%clk 0:03:32.9]} 34. Rxf6 {[%clk 0:02:11.1]}
34... Rxf6 {[%clk 0:03:30.1]} 35. Qxf6+ {[%clk 0:02:09.8]} 35... Kd7 {[%clk
0:03:29.6]} 36. Qf7+ {[%clk 0:01:53.2]} 36... Re7 {[%clk 0:03:26.7]} 37. Qf5+
{[%clk 0:01:50.3]} 37... Kc7 {[%clk 0:03:20.9]} 38. Qf8 {[%clk 0:01:40]} 38...
Rd7 {[%clk 0:03:18.1]} 39. Rf7 {[%clk 0:01:37.2]} 39... Qa5 {[%clk 0:03:08.4]}
40. Rxd7+ {[%clk 0:01:33.5]} 40... Kxd7 {[%clk 0:03:07.6]} 41. Qb4 {[%clk
0:01:27.8]} 41... Qxb4 {[%clk 0:03:04]} 42. axb4 {[%clk 0:01:26.4]} 42... a5
{[%clk 0:02:51]} 43. bxa5 {[%clk 0:01:24.9]} 43... b4 {[%clk 0:02:50.2]} 44.
cxb4 {[%clk 0:01:22]} 44... c3 {[%clk 0:02:49.5]} 45. Kf1 {[%clk 0:01:21.2]}
45... c2 {[%clk 0:02:49]} 0-1

[Event "Live Chess"]
[Site "Chess.com"]
[Date "2023.05.20"]
[Round "-"]
[White "CocheseUK"]
[Black "Enhard"]
[Result "0-1"]
[WhiteElo "1094"]
[BlackElo "1441"]
[TimeControl "300"]
[EndTime "11:25:50 PDT"]
[Termination "Enhard won by resignation"]

1. e4 {[%clk 0:04:57.2]} 1... c6 {[%clk 0:04:58.8]} 2. d4 {[%clk 0:04:56.1]}
2... d5 {[%clk 0:04:58.2]} 3. exd5 {[%clk 0:04:54.9]} 3... cxd5 {[%clk
0:04:57.4]} 4. Nc3 {[%clk 0:04:52.9]} 4... Bf5 {[%clk 0:04:54.9]} 5. Bf4 {[%clk
0:04:46.7]} 5... a6 {[%clk 0:04:53.4]} 6. Nf3 {[%clk 0:04:44.4]} 6... e6 {[%clk
0:04:51.7]} 7. Bd3 {[%clk 0:04:42.1]} 7... Bxd3 {[%clk 0:04:50]} 8. Qxd3 {[%clk
0:04:40]} 8... Nc6 {[%clk 0:04:49.3]} 9. O-O {[%clk 0:04:34.1]} 9... Nf6 {[%clk
0:04:47.4]} 10. Rfe1 {[%clk 0:04:32.4]} 10... Be7 {[%clk 0:04:46.7]} 11. Na4
{[%clk 0:04:23.8]} 11... O-O {[%clk 0:04:44.7]} 12. Nc5 {[%clk 0:04:20.5]} 12...
Bxc5 {[%clk 0:04:41.2]} 13. dxc5 {[%clk 0:04:18.1]} 13... Ne4 {[%clk 0:04:39.7]}
14. Nd2 {[%clk 0:03:58.9]} 14... Nxc5 {[%clk 0:04:37.7]} 15. Qh3 {[%clk
0:03:43.1]} 15... Qf6 {[%clk 0:04:23.6]} 16. Bg3 {[%clk 0:03:08.3]} 16... Nd4
{[%clk 0:04:13.4]} 17. Rec1 {[%clk 0:02:46.2]} 17... Ne2+ {[%clk 0:04:11.4]} 0-1

[Event "Live Chess"]
[Site "Chess.com"]
[Date "2023.05.20"]
[Round "-"]
[White "birdseed45"]
[Black "WilliamofOrange16th"]
[Result "1/2-1/2"]
[WhiteElo "1875"]
[BlackElo "1882"]
[TimeControl "300"]
[EndTime "11:26:09 PDT"]
[Termination "Game drawn by repetition"]

1. e4 {[%clk 0:04:58.2]} 1... d6 {[%clk 0:04:59.1]} 2. d4 {[%clk 0:04:56.4]}
2... Nf6 {[%clk 0:04:58.7]} 3. Nc3 {[%clk 0:04:55]} 3... Nbd7 {[%clk 0:04:58.3]}
4. Nf3 {[%clk 0:04:53.8]} 4... e5 {[%clk 0:04:57.9]} 5. dxe5 {[%clk 0:04:48.1]}
5... dxe5 {[%clk 0:04:57]} 6. Bc4 {[%clk 0:04:46.5]} 6... Be7 {[%clk 0:04:55.9]}
7. O-O {[%clk 0:04:43.4]} 7... O-O {[%clk 0:04:54.9]} 8. Bg5 {[%clk 0:04:41.7]}
8... c6 {[%clk 0:04:54.2]} 9. Qd2 {[%clk 0:04:39.8]} 9... Qc7 {[%clk 0:04:53.2]}
10. h4 {[%clk 0:04:32.4]} 10... b5 {[%clk 0:04:51.2]} 11. Bb3 {[%clk 0:04:30.4]}
11... b4 {[%clk 0:04:50]} 12. Ne2 {[%clk 0:04:14.2]} 12... Nxe4 {[%clk
0:04:47.8]} 13. Qe3 {[%clk 0:04:02.3]} 13... Nxg5 {[%clk 0:04:46.9]} 14. Nxg5
{[%clk 0:03:58.6]} 14... Nc5 {[%clk 0:04:39.7]} 15. Bc4 {[%clk 0:03:47.1]} 15...
Ba6 {[%clk 0:04:16.3]} 16. Bxa6 {[%clk 0:03:27.7]} 16... Nxa6 {[%clk 0:04:16.2]}
17. Ng3 {[%clk 0:03:23.4]} 17... Bxg5 {[%clk 0:03:57]} 18. Qxg5 {[%clk
0:03:23.3]} 18... h6 {[%clk 0:03:49.6]} 19. Qg4 {[%clk 0:03:18.5]} 19... Qc8
{[%clk 0:03:48]} 20. Qe4 {[%clk 0:03:15.8]} 20... Qe6 {[%clk 0:03:43.2]} 21. a3
{[%clk 0:03:01.6]} 21... c5 {[%clk 0:03:37.7]} 22. axb4 {[%clk 0:02:59.3]} 22...
Nxb4 {[%clk 0:03:37.6]} 23. c3 {[%clk 0:02:57.6]} 23... Nd5 {[%clk 0:03:18.9]}
24. Ra5 {[%clk 0:02:53.6]} 24... Rfc8 {[%clk 0:03:15]} 25. Rfa1 {[%clk
0:02:48.8]} 25... Rc7 {[%clk 0:03:13.6]} 26. f4 {[%clk 0:02:36.7]} 26... f6
{[%clk 0:02:59.7]} 27. f5 {[%clk 0:02:27.2]} 27... Qe8 {[%clk 0:02:50.6]} 28.
Qxd5+ {[%clk 0:02:24.4]} 28... Kh8 {[%clk 0:02:49]} 29. Ne4 {[%clk 0:02:16.3]}
29... Rd8 {[%clk 0:02:45.9]} 30. Qe6 {[%clk 0:02:11.8]} 30... Qh5 {[%clk
0:02:41.6]} 31. R5a4 {[%clk 0:01:28.5]} 31... Rcd7 {[%clk 0:02:36.2]} 32. Nf2
{[%clk 0:01:22.1]} 32... Qxh4 {[%clk 0:02:32.1]} 33. Rxa7 {[%clk 0:01:19.2]}
33... Rxa7 {[%clk 0:02:23.5]} 34. Rxa7 {[%clk 0:01:19.1]} 34... Rd1+ {[%clk
0:02:18.8]} 35. Nxd1 {[%clk 0:01:16.8]} 35... Qe1+ {[%clk 0:02:18.4]} 36. Kh2
{[%clk 0:01:12.9]} 36... Qh4+ {[%clk 0:02:18]} 37. Kg1 {[%clk 0:01:10]} 37...
Qe1+ {[%clk 0:02:17.6]} 38. Kh2 {[%clk 0:01:08.8]} 38... Qh4+ {[%clk 0:02:16.6]}
39. Kg1 {[%clk 0:01:07.8]} 1/2-1/2